fUSD/lending_fUSD_20260207
["ID","MTS","AMOUNT","RATE_DAILY","PERIOD"]
[404692237,1770471043586,-1123.0,0.00017973,2]
[404692238,1770471043596,-500.0,0.00017973,2]
[404692239,1770471043608,-150.0,0.00017973,2]
[404692240,1770471043617,-701.11487,0.0001798,2]
[404692241,1770471043626,-111593.37077307,0.0001799,3]
[404692242,1770471043636,-1859.7057632,0.00017995,2]
[404692243,1770471043645,-2558.76103,0.00017995,2]
[404692244,1770471043664,-7371.4220358,0.00017995,2]
[404692245,1770471043677,-151.0,0.00017995,2]
[404692246,1770471043687,-156.938742,0.00017995,2]
[404692247,1770471043697,-151.0,0.00017997,2]
[404692248,1770471043707,-300.0,0.00017999,2]
[404692249,1770471043717,-666.0,0.00017999,2]
[404692250,1770471043727,-324545.40172877,0.00018,2]
[404692251,1770471043749,-16972.94042967,0.00018,2]
[404692252,1770471043761,-904.82,0.00018,2]
[404692253,1770471043781,-6203.25421574,0.00018,2]
[404692254,1770471043792,-3753.19685657,0.00018,2]
[404692255,1770471043818,-4427.36677223,0.00018,2]
[404692256,1770471043830,-1162.01458562,0.00018,2]
[404692257,1770471043859,-500.0,0.0001572,2]
[404692258,1770471043868,-1277.0,0.00018,2]
[404692259,1770471044063,-3254.0,0.00016916,2]
[404692260,1770471044073,-500.0,0.00016999,2]
[404692261,1770471044084,-500.0,0.00016999,2]
[404692262,1770471044094,-500.0,0.00016999,2]
[404692263,1770471044103,-500.0,0.00017899,2]
[404692264,1770471044113,-500.0,0.00017999,2]
[404692265,1770471044123,-613.29946225,0.00017999,2]
[404692266,1770471044133,-400026.85204103,0.00018,2]
[404692267,1770471044181,-29545.60862359,0.00018,2]
[404692268,1770471044196,-1022.86776253,0.00018,2]
[404692269,1770471044208,-1719.4243312,0.00018,2]
[404692270,1770471044340,-937.70955075,0.000179,2]
[404692271,1770471044456,-2555.27183339,0.000179,2]
[404692272,1770471044466,-17408.65227439,0.00018,2]
[404692280,1770471045787,-8267.37050863,0.00018,2]
[404692282,1770471338949,-289.56523372,0.00014086,2]
[404692283,1770471339074,-424.07035337,0.00014086,2]
[404692284,1770471362520,5.34924491,0.00013986,2]
[404692285,1770471362545,494.65075509,0.00013986,2]
[404692287,1770471401962,242.726152,0.00013998,2]
[404692289,1770471427181,160.32704842,0.00013998,2]
[404692290,1770471433941,462.34057681,0.00013986,2]
[404692299,1770472138666,8168.7,0.0002,30]
[404692309,1770472232050,-321.64353245,0.00012823,2]
[404692310,1770472232061,-255.0,0.00012823,2]
[404692311,1770472232071,-13.03801494,0.00012876,2]
[404692312,1770472232083,-477.59198506,0.00012876,2]
[404692313,1770472232092,-490.63,0.000129,2]
[404692314,1770472232101,-420.69756436,0.00012923,2]
[404692315,1770472232112,-779.30243564,0.00012923,2]
[404692316,1770472232122,-300.0,0.00012923,2]
[404692317,1770472232133,-300.0,0.00012923,2]
[404692318,1770472232143,-965.72254939,0.00012923,2]
[404692319,1770472232154,-234.27745061,0.00012923,2]
[404692320,1770472232163,-300.0,0.00012923,2]
[404692321,1770472232172,-250.0,0.00012923,2]
[404692322,1770472232183,-490.63,0.00012923,2]
[404692323,1770472232193,-10549.8,0.00012924,2]
[404692324,1770472232203,-490.63,0.00012947,2]
[404692325,1770472232212,-490.63,0.00012971,2]
[404692326,1770472232222,-490.63,0.00012994,2]
[404692327,1770472232231,-223.50444305,0.00013018,2]
[404692328,1770472232243,-267.12555695,0.00013018,2]
[404692329,1770472232253,-490.63,0.00013042,2]
[404692330,1770472232262,-490.63,0.00013066,2]
[404692331,1770472232272,-476.61444305,0.00013089,2]
[404692332,1770472232294,-14.01555695,0.00013089,2]
[404692333,1770472232303,-174.52608341,0.00013108,2]
[404692334,1770472232312,-490.63,0.00013113,2]
[404692335,1770472232321,-490.63,0.00013137,2]
[404692336,1770472232331,-490.63,0.00013161,2]
[404692337,1770472232340,-490.63,0.00013184,2]
[404692338,1770472232349,-104.78760147,0.00013208,2]
[404692339,1770472232360,-385.84239853,0.00013208,2]
[404692340,1770472232370,-250.0,0.00013227,2]
[404692341,1770472232381,-490.63,0.00013232,2]
[404692342,1770472232390,-39.98760147,0.00013255,2]
[404692347,1770472237634,-450.64239853,0.00013255,2]
[404692348,1770472237644,-490.63,0.00013279,2]
[404692349,1770472237654,-490.63,0.00013303,2]
[404692350,1770472237664,-321.64353245,0.00013305,2]
[404692351,1770472237673,-490.63,0.00013327,2]
[404692352,1770472237683,-3240.0,0.00013425,2]
[404692353,1770472237692,-150.0,0.0001343,2]
[404692354,1770472237702,-263.43,0.000135,2]
[404692355,1770472237712,-9869.81,0.00013536,2]
[404692356,1770472237722,-2018.4217772,0.00013699,2]
[404692357,1770472237734,-2774.8928558,0.00013699,2]
[404692358,1770472237746,-3089.415367,0.00013699,2]
[404692359,1770472237755,-798.36,0.00013699,2]
[404692360,1770472237765,-500.0,0.00013711,2]
[404692361,1770472237775,-500.0,0.00013766,2]
[404692362,1770472237784,-150.0,0.00013766,2]
[404692363,1770472237794,-321.64353245,0.00013786,2]
[404692364,1770472237803,-1440.53628294,0.00013786,2]
[404692365,1770472237813,-150.41052194,0.00013812,2]
[404692366,1770472237823,-150.0,0.00013812,2]
[404692367,1770472237832,-150.0,0.00013812,2]
[404692368,1770472237842,-500.0,0.00013821,2]
[404692369,1770472237851,-156.74412861,0.00013867,2]
[404692370,1770472237861,-150.0,0.00013867,2]
[404692371,1770472237870,-500.0,0.00013867,2]
[404692372,1770472237880,-500.0,0.00013875,2]
[404692373,1770472237891,-3142.89016706,0.00013885,2]
[404692374,1770472237903,-7100.9489276,0.00013885,2]
[404692375,1770472237913,-500.0,0.00013885,2]
[404692376,1770472237922,-500.0,0.00013885,2]
[404692377,1770472237931,-500.0,0.00013885,2]
[404692378,1770472237942,-500.0,0.00013885,2]
[404692379,1770472237951,-500.0,0.00013885,2]
[404692380,1770472237960,-539.19320924,0.00013885,2]
[404692381,1770472237970,-500.0,0.00013885,2]
[404692382,1770472237980,-198.27697094,0.00013885,2]
[404692383,1770472237990,-539.19320924,0.00013885,2]
[404692384,1770472238001,-500.0,0.00013885,2]
[404692385,1770472238011,-500.0,0.00013885,2]
[404692386,1770472238021,-500.0,0.00013885,2]
[404692387,1770472238030,-500.0,0.00013885,2]
[404692388,1770472238040,-500.0,0.00013885,2]
[404692389,1770472238049,-363.36189103,0.00013885,2]
[404692390,1770472238059,-539.19320924,0.00013885,2]
[404692391,1770472238068,-204.15306279,0.00013885,2]
[404692392,1770472238077,-500.0,0.00013885,2]
[404692393,1770472238087,-500.0,0.00013885,2]
[404692394,1770472238095,-315.47510582,0.00013885,2]
[404692395,1770472238104,-401.10971124,0.00013885,2]
[404692396,1770472238113,-539.19320924,0.00013885,2]
[404692397,1770472238123,-539.19320924,0.00013885,2]
[404692398,1770472238136,-500.0,0.00013885,2]
[404692399,1770472238145,-500.0,0.00013885,2]
[404692400,1770472238155,-539.19320924,0.00013885,2]
[404692401,1770472238164,-539.19320924,0.00013885,2]
[404692402,1770472238174,-500.0,0.00013885,2]
[404692403,1770472238183,-539.19320924,0.00013885,2]
[404692404,1770472238195,-539.19320924,0.00013885,2]
[404692405,1770472238206,-539.19320924,0.00013885,2]
[404692406,1770472238216,-539.19320924,0.00013885,2]
[404692407,1770472238227,-539.19320924,0.00013885,2]
[404692408,1770472238237,-539.19320924,0.00013885,2]
[404692409,1770472238247,-539.19320924,0.00013885,2]
[404692410,1770472238257,-539.19320924,0.00013885,2]
[404692411,1770472238267,-539.19320924,0.00013885,2]
[404692412,1770472238277,-539.19320924,0.00013885,2]
[404692413,1770472238286,-539.19320924,0.00013885,2]
[404692414,1770472238296,-539.19320924,0.00013885,2]
[404692415,1770472238305,-539.19320924,0.00013885,2]
[404692416,1770472238315,-539.19320924,0.00013885,2]
[404692417,1770472238325,-539.19320924,0.00013885,2]
[404692418,1770472238334,-539.19320924,0.00013885,2]
[404692419,1770472238343,-539.19320924,0.00013885,2]
[404692420,1770472238353,-539.19320924,0.00013885,2]
[404692421,1770472238363,-539.19320924,0.00013885,2]
[404692422,1770472238373,-539.19320924,0.00013885,2]
[404692423,1770472238383,-539.19320924,0.00013885,2]
[404692424,1770472238392,-539.19320924,0.00013885,2]
[404692425,1770472238402,-539.19320924,0.00013885,2]
[404692426,1770472238411,-539.19320924,0.00013885,2]
[404692427,1770472238421,-539.19320924,0.00013885,2]
[404692428,1770472238431,-539.19320924,0.00013885,2]
[404692429,1770472238443,-539.19320924,0.00013885,2]
[404692430,1770472238456,-539.19320924,0.00013885,2]
[404692431,1770472238465,-539.19320924,0.00013885,2]
[404692432,1770472238475,-539.19320924,0.00013885,2]
[404692433,1770472238485,-539.19320924,0.00013885,2]
[404692434,1770472238495,-539.19320924,0.00013885,2]
[404692435,1770472238504,-539.19320924,0.00013885,2]
[404692436,1770472238514,-539.19320924,0.00013885,2]
[404692437,1770472238524,-539.19320924,0.00013885,2]
[404692438,1770472238534,-539.19320924,0.00013885,2]
[404692439,1770472238544,-539.19320924,0.00013885,2]
[404692440,1770472238553,-539.19320924,0.00013885,2]
[404692441,1770472238564,-539.19320924,0.00013885,2]
[404692442,1770472238574,-539.19320924,0.00013885,2]
[404692443,1770472238584,-539.19320924,0.00013885,2]
[404692444,1770472238594,-2500.0,0.00013886,2]
[404692445,1770472238604,-17062.09666075,0.00013887,2]
[404692446,1770472238614,-158.20460184,0.00013887,2]
[404692447,1770472238623,-179.62943936,0.00013922,2]
[404692448,1770472238632,-500.0,0.0001393,2]
[404692449,1770472238642,-500.0,0.00013978,2]
[404692450,1770472238651,-151.0,0.00013978,2]
[404692451,1770472238660,-151.0,0.00013978,2]
[404692452,1770472238670,-151.0,0.00013978,2]
[404692453,1770472238679,-151.0,0.00013978,2]
[404692454,1770472238689,-151.0,0.00013978,2]
[404692455,1770472238700,-151.0,0.00013978,2]
[404692456,1770472238709,-151.0,0.00013978,2]
[404692457,1770472238718,-500.0,0.00013978,2]
[404692458,1770472238727,-151.0,0.00013978,2]
[404692459,1770472238737,-200.0,0.00013978,2]
[404692460,1770472238746,-151.0,0.00013978,2]
[404692461,1770472238755,-151.0,0.00013978,2]
[404692462,1770472238765,-151.0,0.00013978,2]
[404692463,1770472238774,-151.0,0.00013978,2]
[404692464,1770472238784,-151.0,0.00013978,2]
[404692465,1770472238793,-151.0,0.00013978,2]
[404692466,1770472238803,-151.0,0.00013978,2]
[404692467,1770472238812,-151.0,0.00013978,2]
[404692468,1770472238822,-151.0,0.00013978,2]
[404692469,1770472238832,-151.0,0.00013978,2]
[404692470,1770472238841,-151.0,0.00013978,2]
[404692471,1770472238851,-500.0,0.00013978,2]
[404692472,1770472238861,-151.0,0.00013978,2]
[404692473,1770472238871,-500.0,0.00013978,2]
[404692474,1770472238882,-500.0,0.00013978,2]
[404692475,1770472238891,-500.0,0.00013978,2]
[404692476,1770472238901,-500.0,0.00013978,2]
[404692477,1770472238911,-500.0,0.00013978,2]
[404692478,1770472238920,-500.0,0.00013978,2]
[404692479,1770472238930,-500.0,0.00013978,2]
[404692480,1770472238940,-500.0,0.00013978,2]
[404692481,1770472238952,-500.0,0.00013978,2]
[404692482,1770472238962,-500.0,0.00013978,2]
[404692483,1770472238971,-500.0,0.00013978,2]
[404692484,1770472238980,-500.0,0.00013978,2]
[404692485,1770472238990,-500.0,0.00013978,2]
[404692486,1770472239000,-500.0,0.00013978,2]
[404692487,1770472239010,-500.0,0.00013978,2]
[404692488,1770472239020,-500.0,0.00013978,2]
[404692489,1770472239030,-500.0,0.00013978,2]
[404692490,1770472239041,-500.0,0.00013978,2]
[404692491,1770472239050,-500.0,0.00013978,2]
[404692492,1770472239059,-500.0,0.00013978,2]
[404692493,1770472239068,-500.0,0.00013978,2]
[404692494,1770472239078,-151.0,0.00013978,2]
[404692495,1770472239088,-151.0,0.00013978,2]
[404692496,1770472239097,-200.0,0.00013978,2]
[404692497,1770472239107,-151.0,0.00013978,2]
[404692498,1770472239117,-151.0,0.00013978,2]
[404692499,1770472239126,-151.0,0.00013978,2]
[404692500,1770472239139,-151.0,0.00013978,2]
[404692501,1770472239149,-151.0,0.00013978,2]
[404692502,1770472239159,-151.0,0.00013978,2]
[404692503,1770472239168,-151.0,0.00013978,2]
[404692504,1770472239179,-151.0,0.00013978,2]
[404692505,1770472239188,-200.13575866,0.00013978,2]
[404692506,1770472239200,-500.0,0.00013985,2]
[404692507,1770472239210,-463.0067,0.00013986,2]
[404692508,1770472239221,-3438.21459566,0.00013987,2]
[404692509,1770472239230,-2942.467,0.00013997,2]
[404692510,1770472239240,-229.064,0.00013997,2]
[404692511,1770472239249,-169.42023236,0.00013998,2]
[404692512,1770472239259,-500.0,0.0001404,2]
[404692513,1770472239269,-666.0,0.00014086,2]
[404692514,1770472239279,-500.0,0.00014087,2]
[404692515,1770472239289,-500.0,0.00014087,2]
[404692516,1770472239298,-500.0,0.00014087,2]
[404692517,1770472239308,-171.99283888,0.00014095,2]
[404692518,1770472239318,-1000.0,0.00014098,2]
[404692519,1770472239327,-263.43,0.000141,2]
[404692520,1770472239336,-600.0,0.00014105,2]
[404692521,1770472239347,-500.0,0.00014141,2]
[404692522,1770472239357,-371.4948338,0.00014163,2]
[404692523,1770472239366,-1680.0,0.00014173,2]
[404692524,1770472239376,-420.0,0.00014173,2]
[404692525,1770472239385,-420.0,0.00014173,2]
[404692526,1770472239395,-33304.9777,0.00014187,2]
[404692527,1770472239405,-1680.0,0.00014215,2]
[404692528,1770472239415,-300.0,0.00014215,2]
[404692529,1770472239425,-250.0,0.00014215,2]
[404692530,1770472239435,-10243.83909459,0.00014331,2]
[404692531,1770472239447,-17062.09666072,0.00014333,2]
[404692532,1770472239456,-798.36,0.00014384,2]
[404692533,1770472239466,-511.92394536,0.00014415,2]
[404692534,1770472239476,-500.0,0.00014526,2]
[404692535,1770472239486,-200.0,0.00014526,2]
[404692536,1770472239495,-200.0,0.00014526,2]
[404692537,1770472239504,-255.0,0.00014545,2]
[404692538,1770472239514,-2644.29980787,0.0001468,2]
[404692541,1770472239523,-300.0,0.00014767,2]
[404692542,1770472239715,-2500.0,0.00014767,2]
[404692543,1770472239725,-2500.0,0.00014767,2]
[404692544,1770472239734,-1056.16927478,0.00014767,2]
[404692545,1770472239745,-5000.0,0.00014767,2]
[404692546,1770472239754,-10243.83909459,0.00014777,2]
[404692547,1770472239764,-17062.09666072,0.00014779,2]
[404692548,1770472239775,-218.88,0.00014848,2]
[404692549,1770472239785,-200.0,0.00014926,2]
[404692550,1770472239794,-500.0,0.00014949,2]
[404692551,1770472239804,-500.0,0.00014949,2]
[404692552,1770472239813,-500.0,0.00014949,2]
[404692553,1770472239823,-500.0,0.00014949,2]
[404692554,1770472239833,-500.0,0.00014949,2]
[404692555,1770472239842,-798.36,0.00015068,2]
[404692556,1770472239851,-500.0,0.00015074,2]
[404692557,1770472239861,-200.0,0.00015074,2]
[404692558,1770472239870,-200.0,0.00015074,2]
[404692559,1770472239880,-500.0,0.00015074,2]
[404692560,1770472239889,-2644.29980782,0.0001514,2]
[404692561,1770472239899,-278.44758318,0.00015172,2]
[404692562,1770472239908,-578.83635773,0.00015172,2]
[404692563,1770472239917,-500.0,0.00015172,2]
[404692564,1770472239927,-500.0,0.00015172,2]
[404692565,1770472239936,-547.89302135,0.00015172,2]
[404692566,1770472239947,-500.0,0.00015172,2]
[404692567,1770472239956,-500.0,0.00015172,2]
[404692568,1770472239965,-500.0,0.00015172,2]
[404692569,1770472239974,-500.0,0.00015173,2]
[404692570,1770472239984,-607.48017178,0.00015173,2]
[404692571,1770472239993,-500.0,0.00015173,2]
[404692572,1770472240003,-500.0,0.00015173,2]
[404692573,1770472240012,-500.0,0.00015173,2]
[404692574,1770472240022,-501.14347346,0.00015173,2]
[404692575,1770472240032,-500.0,0.00015173,2]
[404692576,1770472240041,-500.0,0.00015173,2]
[404692577,1770472240050,-500.0,0.00015173,2]
[404692578,1770472240060,-217.81806779,0.00015173,2]
[404692579,1770472240069,-500.0,0.00015173,2]
[404692580,1770472240079,-500.0,0.00015173,2]
[404692581,1770472240088,-500.0,0.00015173,2]
[404692582,1770472240099,-500.0,0.00015173,2]
[404692583,1770472240109,-500.0,0.00015173,2]
[404692584,1770472240119,-166.51358966,0.00015173,2]
[404692585,1770472240128,-500.0,0.00015173,2]
[404692586,1770472240143,-500.0,0.00015173,2]
[404692587,1770472240153,-500.0,0.00015173,2]
[404692588,1770472240163,-500.0,0.00015173,2]
[404692589,1770472240173,-500.0,0.00015173,2]
[404692590,1770472240182,-500.89849545,0.00015173,2]
[404692591,1770472240191,-169.79228934,0.00015173,2]
[404692592,1770472240202,-500.0,0.00015173,2]
[404692593,1770472240213,-500.0,0.00015173,2]
[404692594,1770472240223,-166.38701888,0.00015173,2]
[404692595,1770472240233,-363.98392917,0.00015173,2]
[404692596,1770472240243,-500.0,0.00015173,2]
[404692597,1770472240252,-500.0,0.00015173,2]
[404692598,1770472240262,-500.0,0.00015173,2]
[404692599,1770472240271,-500.0,0.00015173,2]
[404692600,1770472240284,-500.0,0.00015173,2]
[404692601,1770472240293,-561.17,0.00015173,2]
[404692602,1770472240303,-10243.83909459,0.00015223,2]
[404692603,1770472240313,-17062.09666072,0.00015225,2]
[404692604,1770472240322,-1054.48,0.00015271,2]
[404692606,1770472240332,-169.42023235,0.00015299,2]
[404692608,1770472240342,-151.0,0.00015307,2]
[404692610,1770472240352,-799.2381371,0.0001531,2]
[404692612,1770472240361,-1272.50606405,0.0001531,2]
[404692613,1770472240371,-621.20778463,0.0001531,2]
[404692614,1770472240381,-5326.57,0.0001531,2]
[404692615,1770472240390,-5908.21,0.0001531,2]
[404692616,1770472240400,-4999.99,0.0001531,2]
[404692617,1770472240410,-299.99,0.0001531,2]
[404692618,1770472240419,-14612.94,0.0001531,2]
[404692619,1770472240429,-1610.39,0.0001531,2]
[404692620,1770472240438,-22352.3,0.0001531,2]
[404692621,1770472240447,-499.99,0.0001531,2]
[404692622,1770472240457,-9999.99,0.0001531,2]
[404692623,1770472240466,-999.99,0.0001531,2]
[404692624,1770472240476,-9999.99,0.0001531,2]
[404692625,1770472240485,-14411.87,0.0001531,2]
[404692626,1770472240495,-1554.0,0.0001531,2]
[404692627,1770472240504,-438.39,0.0001531,2]
[404692628,1770472240513,-26702.96,0.0001531,2]
[404692629,1770472240523,-9999.99,0.0001531,2]
[404692630,1770472240533,-150.99,0.0001531,2]
[404692631,1770472240542,-9999.99,0.0001531,2]
[404692632,1770472240551,-150.99,0.0001531,2]
[404692633,1770472240560,-9251.92,0.0001531,2]
[404692634,1770472240570,-12352.82,0.0001531,2]
[404692635,1770472240579,-500.0,0.00015399,2]
[404692636,1770472240588,-1000.0,0.00015445,2]
[404692637,1770472240598,-561.17,0.00015447,2]
[404692638,1770472240607,-160.0,0.00015514,2]
[404692639,1770472240616,-587.0,0.00015544,2]
[404692640,1770472240626,-587.0,0.00015544,2]
[404692641,1770472240635,-2644.29980782,0.000156,2]
[404692642,1770472240644,-500.0,0.00015616,2]
[404692643,1770472240654,-4860.0303,0.00015621,2]
[404692644,1770472240663,-500.0,0.00015622,2]
[404692645,1770472240672,-200.0,0.00015622,2]
[404692646,1770472240681,-200.0,0.00015622,2]
[404692647,1770472240690,-2351.0,0.00015636,2]
[404692648,1770472240700,-152.0,0.0001566,3]
[404692649,1770472240709,-10243.83909459,0.00015669,2]
[404692650,1770472240718,-17062.09666072,0.00015671,2]
[404692651,1770472240728,-500.0,0.0001572,2]
[404692652,1770472240738,-500.0,0.0001572,2]
[404692653,1770472240747,-192.67143229,0.0001572,2]
[404692654,1770472240757,-500.0,0.0001572,2]
[404692655,1770472240766,-500.0,0.0001572,2]
[404692656,1770472240775,-500.0,0.0001572,2]
[404692657,1770472240784,-278.56890319,0.00015721,2]
[404692658,1770472240794,-1000.0,0.00015721,2]
[404692659,1770472240803,-946.75686173,0.00015721,2]
[404692660,1770472240812,-349.18395774,0.00015721,2]
[404692661,1770472240822,-1000.0,0.00015721,2]
[404692662,1770472240831,-1000.0,0.00015721,2]
[404692663,1770472240841,-1000.0,0.00015721,2]
[404692664,1770472240850,-506.10959782,0.00015721,2]
[404692665,1770472240859,-614.60634748,0.00015721,2]
[404692666,1770472240869,-1000.0,0.00015721,2]
[404692667,1770472240878,-1079.80185516,0.00015721,2]
[404692668,1770472240887,-619.67330521,0.00015721,2]
[404692669,1770472240897,-305.61116112,0.00015721,2]
[404692670,1770472240906,-500.0,0.00015721,2]
[404692671,1770472240915,-1000.0,0.00015721,2]
[404692672,1770472240926,-1000.0,0.00015721,2]
[404692673,1770472240935,-1000.0,0.00015721,2]
[404692674,1770472240944,-1000.0,0.00015721,2]
[404692675,1770472240954,-561.17,0.00015721,2]
[404692676,1770472240963,-798.36,0.00015753,2]
[404692677,1770472240972,-433.0,0.00015754,2]
[404692678,1770472240982,-340.0,0.00015844,2]
[404692679,1770472240991,-869.6,0.00015875,2]
[404692680,1770472241001,-158.20460182,0.00015894,2]
[404692681,1770472241011,-561.17,0.00015995,2]
[404692682,1770472241020,-150.27588129,0.00016,2]
[404692683,1770472241029,-390.0,0.00016015,2]
[404692684,1770472241039,-2644.29980782,0.0001606,2]
[404692685,1770472241048,-10243.83909459,0.00016116,2]
[404692686,1770472241057,-17062.09666072,0.00016116,2]
[404692687,1770472241067,-869.6,0.00016149,2]
[404692688,1770472241077,-500.0,0.0001617,2]
[404692689,1770472241088,-200.0,0.0001617,2]
[404692690,1770472241097,-200.0,0.0001617,2]
[404692691,1770472241106,-561.21234084,0.00016268,2]
[404692692,1770472241115,-1500.0,0.00016268,2]
[404692693,1770472241124,-1205.73103869,0.00016268,2]
[404692694,1770472241136,-721.01082613,0.00016268,2]
[404692695,1770472241146,-1500.6861044,0.00016268,2]
[404692696,1770472241155,-1500.0,0.00016268,2]
[404692697,1770472241166,-1193.87683295,0.00016268,2]
[404692698,1770472241176,-381.3557452,0.00016268,2]
[404692699,1770472241186,-184.19856458,0.00016268,2]
[404692700,1770472241195,-390.0,0.00016277,2]
[404692701,1770472241205,-840.0,0.000164,2]
[404692702,1770472241215,-857.0,0.000164,2]
[404692703,1770472241224,-390.0,0.00016408,2]
[404692704,1770472241234,-869.6,0.00016423,2]
[404692705,1770472241243,-800.0,0.00016438,2]
[404692706,1770472241253,-798.36,0.00016438,2]
[404692707,1770472241262,-390.0,0.00016464,2]
[404692708,1770472241271,-2644.29980782,0.0001652,2]
[404692709,1770472241280,-10243.83909459,0.00016562,2]
[404692710,1770472241290,-17062.09666072,0.00016562,2]
[404692711,1770472241300,-169.42023235,0.00016599,2]
[404692712,1770472241311,-390.0,0.00016609,2]
[404692713,1770472241320,-390.0,0.00016627,2]
[404692714,1770472241330,-3790.0,0.00016666,2]
[404692715,1770472241339,-176.64678228,0.00016697,2]
[404692716,1770472241348,-869.6,0.00016697,2]
[404692717,1770472241357,-390.0,0.00016706,2]
[404692718,1770472241367,-503.89980627,0.00016717,2]
[404692719,1770472241378,-500.0,0.00016718,2]
[404692720,1770472241388,-200.0,0.00016718,2]
[404692721,1770472241398,-200.0,0.00016718,2]
[404692722,1770472241408,-163.0,0.0001672,2]
[404692723,1770472241418,-390.0,0.00016726,2]
[404692724,1770472241428,-511.17251501,0.00016773,2]
[404692725,1770472241438,-501.58342039,0.00016773,2]
[404692726,1770472241448,-500.0,0.00016773,2]
[404692727,1770472241458,-500.9102189,0.00016773,2]
[404692728,1770472241467,-500.83175848,0.00016773,2]
[404692729,1770472241476,-500.96112568,0.00016773,2]
[404692730,1770472241485,-502.71573821,0.00016773,2]
[404692731,1770472241494,-500.71876563,0.00016773,2]
[404692732,1770472241505,-502.51898619,0.00016773,2]
[404692733,1770472241515,-500.87567623,0.00016773,2]
[404692734,1770472241525,-501.56384225,0.00016773,2]
[404692735,1770472241536,-501.66346895,0.00016773,2]
[404692736,1770472241545,-501.34047747,0.00016773,2]
[404692737,1770472241555,-501.0806738,0.00016773,2]
[404692738,1770472241564,-500.0,0.00016773,2]
[404692739,1770472241573,-500.75477963,0.00016773,2]
[404692740,1770472241582,-160.144,0.00016773,2]
[404692741,1770472241592,-160.144,0.00016773,2]
[404692742,1770472241602,-160.144,0.00016773,2]
[404692743,1770472241611,-160.0,0.00016773,2]
[404692744,1770472241620,-500.0,0.00016773,2]
[404692745,1770472241629,-500.75752829,0.00016773,2]
[404692746,1770472241638,-500.82365782,0.00016773,2]
[404692747,1770472241648,-327.45326444,0.00016773,2]
[404692748,1770472241658,-500.0,0.00016773,2]
[404692749,1770472241668,-500.44572838,0.00016773,2]
[404692750,1770472241678,-555.01216598,0.00016773,2]
[404692751,1770472241687,-160.144,0.00016773,2]
[404692752,1770472241696,-500.85471823,0.00016773,2]
[404692753,1770472241706,-160.144,0.00016773,2]
[404692754,1770472241715,-160.144,0.00016773,2]
[404692755,1770472241729,-160.144,0.00016773,2]
[404692756,1770472241739,-160.16,0.00016773,2]
[404692757,1770472241750,-160.144,0.00016773,2]
[404692758,1770472241759,-189.69160583,0.00016773,2]
[404692759,1770472241769,-500.82082584,0.00016773,2]
[404692760,1770472241779,-500.54678551,0.00016773,2]
[404692761,1770472241795,-501.16814505,0.00016773,2]
[404692762,1770472241807,-501.23769089,0.00016773,2]
[404692763,1770472241818,-502.0240799,0.00016773,2]
[404692764,1770472241831,-501.62253094,0.00016773,2]
[404692765,1770472241843,-500.53646167,0.00016773,2]
[404692766,1770472241855,-501.54780201,0.00016773,2]
[404692767,1770472241865,-501.03613157,0.00016773,2]
[404692768,1770472241875,-160.144,0.00016773,2]
[404692769,1770472241885,-160.144,0.00016773,2]
[404692770,1770472241896,-501.03785696,0.00016773,2]
[404692771,1770472241907,-501.52124127,0.00016773,2]
[404692772,1770472241922,-293.09330674,0.00016773,2]
[404692773,1770472241934,-500.6237443,0.00016773,2]